Workbook

Sheet Example Table 2
A1: Gys_Extended_1.1 | K1: Prediction of the Fundamental Sampling Error, FSE: | T1: Author: Bo Svensmark, svensmark@plen.ku.dk, Analytical Chemistry, ECP, PLEN, University of Copenhagen, 2021
K2: s(FSE) % caused by the constiutional heterogeneity of a 0-dimensional lot
B3: Table 1 | C3: =IF(SUM(E5:E14)=1,"","ERROR: Sum of x(k) must be 1") ->  | I3: Table 2 | T3: ONLY ENTER values in the WHITE CELLS
B4: Class k | C4: Name | D4: m(k), g | E4: x(k) | F4: s(FSE) % | H4: Mass factor | I4: =IF(I6="","",1/I6-1/I5) -> 0.007 | K4: 1) Enter parameters for the classes in Table 1
B5: 1 | C5: Sand | D5: 0.0001 | E5: 0.05 | F5: =IF(C5="","",100*SQRT($I$4*D30)) -> 3.830907203 | H5: M(L), g | I5: 1000 | K5: 2) Enter mass of the lot and the sample in Table 2 | T5: Grey cells are protected, to unprotect, click Review and Unprotect Sheet
B6: 2 | C6: Sesame | D6: 0.003 | E6: 0.05 | F6: =IF(C6="","",100*SQRT($I$4*F30)) -> 4.281337408 | H6: M(S), g | I6: 125
B7: 3 | C7: Barley | D7: 0.045 | E7: 0.7 | F7: =IF(C7="","",100*SQRT($I$4*H30)) -> 3.57069321 | K7: For estimation of m(k) = fgd3r use Table 9 below (Cell B40+) | AA7: a(k):C oncentration of analyte k in the lot, g/g
B8: 4 | C8: Steel | D8: 0.881 | E8: 0.2 | F8: =IF(C8="","",100*SQRT($I$4*J30)) -> 14.1265654
B9: 5 | F9: =IF(C9="","",100*SQRT($I$4*L30)) ->  | K9: Each class is considered to be an analyte in this sheet | AA9: Here a(k) = 1 for the class that is considered analyte.
B10: 6 | F10: =IF(C10="","",100*SQRT($I$4*N30)) ->  | H10: Headings and comments:
B11: 7 | F11: =IF(C11="","",100*SQRT($I$4*P30)) ->  | H11: Data and results for mixture 4, Table 2 in the paper: https://doi.org/10.1016/j.aca.2021.339127
B12: 8 | F12: =IF(C12="","",100*SQRT($I$4*R30)) ->  | H12: m(k)'s are measured values and do not need to be estimated using Table 9 | T12: m(k): | U12: Average mass of a fragment of class k, g
B13: 9 | F13: =IF(C13="","",100*SQRT($I$4*T30)) ->  | T13: x(k): | U13: Fraction of class k in the lot, M(k)/M(L)
B14: 10 | F14: =IF(C14="","",100*SQRT($I$4*V30)) ->  | H14: To make your own estimates use the sheet: Classes as analyte | T14: a(L): | U14: Concentration of analyte i in the lot, g/g
D15: Sum: | E15: =SUM(E5:E14) -> 1 | T15: HI: | U15: Heterogeneity Invariant for the class HI(k) or lot HI(L), g or %
B16: Table 3
C17: Analyte: | D17: =IF(C5="","",C5) -> Sand | F17: =IF(C6="","",C6) -> Sesame | H17: =IF(C7="","",C7) -> Barley | J17: =IF(C8="","",C8) -> Steel | L17: =IF(C9="","",C9) ->  | N17: =IF(C10="","",C10) ->  | P17: =IF(C11="","",C11) ->  | R17: =IF(C12="","",C12) ->  | T17: =IF(C13="","",C13) ->  | V17: =IF(C14="","",C14) -> 
C18: a(L) | D18: =IF(E5="","",E5) -> 0.05 | F18: =IF(E6="","",E6) -> 0.05 | H18: =IF(E7="","",E7) -> 0.7 | J18: =IF(E8="","",E8) -> 0.2 | L18: =IF(E9="","",E9) ->  | N18: =IF(E10="","",E10) ->  | P18: =IF(E11="","",E11) ->  | R18: =IF(E12="","",E12) ->  | T18: =IF(E13="","",E13) ->  | V18: =IF(E14="","",E14) -> 
B19: Class k | C19: Name | D19: HI(k), g | E19: HI(k), % | F19: HI(k), g | G19: HI(k), % | H19: HI(k), g | I19: HI(k), % | J19: HI(k), g | K19: HI(k), % | L19: HI(k), g | M19: HI(k), % | N19: HI(k), g | O19: HI(k), % | P19: HI(k), g | Q19: HI(k), % | R19: HI(k), g | S19: HI(k), % | T19: HI(k), g | U19: HI(k), % | V19: HI(k), g | W19: HI(k), %
B20: 1 | C20: =IF(C5="","",C5) -> Sand | D20: =IF($D5="","",$D5*(1/D$18-1)^2*$E5) -> 0.001805 | E20: =IF(D20<>"",100*D20/D$30,"") -> 0.860938208 | F20: =IF($D$6*$D5=0,"",$D5*$E5) -> 5e-06 | G20: =IF(F20<>"",100*F20/F$30,"") -> 0.001909453705 | H20: =IF($D$7*$D5=0,"",$D5*$E5) -> 5e-06 | I20: =IF(H20<>"",100*H20/H$30,"") -> 0.002745130335 | J20: =IF($D$8*$D5=0,"",$D5*$E5) -> 5e-06 | K20: =IF(J20<>"",100*J20/J$30,"") -> 0.0001753859807 | L20: =IF($D$9*$D5=0,"",$D5*$E5) ->  | M20: =IF(L20<>"",100*L20/L$30,"") ->  | N20: =IF($D$10*$D5=0,"",$D5*$E5) ->  | O20: =IF(N20<>"",100*N20/N$30,"") ->  | P20: =IF($D$11*$D5=0,"",$D5*$E5) ->  | Q20: =IF(P20<>"",100*P20/P$30,"") ->  | R20: =IF($D$12*$D5=0,"",$D5*$E5) ->  | S20: =IF(R20<>"",100*R20/R$30,"") ->  | T20: =IF($D$13*$D5=0,"",$D5*$E5) ->  | U20: =IF(T20<>"",100*T20/T$30,"") ->  | V20: =IF($D$14*$D5=0,"",$D5*$E5) ->  | W20: =IF(V20<>"",100*V20/V$30,"") -> 
B21: 2 | C21: =IF(C6="","",C6) -> Sesame | D21: =IF($D$5*$D6=0,"",$D6*$E6) -> 0.00015 | E21: 0.07154611147 | F21: =IF($D6="","",$D6*(1/F$18-1)^2*$E6) -> 0.05415 | G21: 20.67938363 | H21: 0.00015 | I21: 0.08235391005 | J21: 0.00015 | K21: 0.005261579421 | V21: =IF($D$14*$D6=0,"",$D6*$E6) -> 
B22: 3 | C22: =IF(C7="","",C7) -> Barley | D22: =IF($D$5*$D7=0,"",$D7*$E7) -> 0.0315 | E22: 15.02468341 | F22: =IF($D$6*$D7=0,"",$D7*$E7) -> 0.0315 | G22: 12.02955834 | H22: =IF($D7="","",$D7*(1/H$18-1)^2*$E7) -> 0.005785714286 | I22: 3.176507959 | J22: 0.0315 | K22: 1.104931678
B23: 4 | C23: Steel | D23: 0.1762 | E23: 84.04283227 | F23: =IF($D$6*$D8=0,"",$D8*$E8) -> 0.1762 | G23: 67.28914857 | H23: =IF($D$7*$D8=0,"",$D8*$E8) -> 0.1762 | I23: 96.738393 | J23: =IF($D8="","",$D8*(1/J$18-1)^2*$E8) -> 2.8192 | K23: 98.88963136
B24: 5 | H24: =IF($D$7*$D9=0,"",$D9*$E9) ->  | J24: =IF($D$8*$D9=0,"",$D9*$E9) ->  | L24: =IF($D9="","",$D9*(1/L$18-1)^2*$E9) -> 
B25: 6 | J25: =IF($D$8*$D10=0,"",$D10*$E10) ->  | L25: =IF($D$9*$D10=0,"",$D10*$E10) ->  | N25: =IF($D10="","",$D10*(1/N$18-1)^2*$E10) -> 
B26: 7 | L26: =IF($D$9*$D11=0,"",$D11*$E11) ->  | N26: =IF($D$10*$D11=0,"",$D11*$E11) ->  | P26: =IF($D11="","",$D11*(1/P$18-1)^2*$E11) -> 
B27: 8 | E27: =IF(D27<>"",100*D27/D$30,"") ->  | G27: =IF(F27<>"",100*F27/F$30,"") ->  | I27: =IF(H27<>"",100*H27/H$30,"") ->  | K27: =IF(J27<>"",100*J27/J$30,"") ->  | M27: =IF(L27<>"",100*L27/L$30,"") ->  | N27: =IF($D$10*$D12=0,"",$D12*$E12) ->  | O27: =IF(N27<>"",100*N27/N$30,"") ->  | P27: =IF($D$11*$D12=0,"",$D12*$E12) ->  | Q27: =IF(P27<>"",100*P27/P$30,"") ->  | R27: =IF($D12="","",$D12*(1/R$18-1)^2*$E12) ->  | S27: =IF(R27<>"",100*R27/R$30,"") ->  | U27: =IF(T27<>"",100*T27/T$30,"") ->  | W27: =IF(V27<>"",100*V27/V$30,"") -> 
B28: 9 | E28: =IF(D28<>"",100*D28/D$30,"") ->  | G28: =IF(F28<>"",100*F28/F$30,"") ->  | I28: =IF(H28<>"",100*H28/H$30,"") ->  | K28: =IF(J28<>"",100*J28/J$30,"") ->  | M28: =IF(L28<>"",100*L28/L$30,"") ->  | O28: =IF(N28<>"",100*N28/N$30,"") ->  | P28: =IF($D$11*$D13=0,"",$D13*$E13) ->  | Q28: =IF(P28<>"",100*P28/P$30,"") ->  | R28: =IF($D$12*$D13=0,"",$D13*$E13) ->  | S28: =IF(R28<>"",100*R28/R$30,"") ->  | T28: =IF($D13="","",$D13*(1/T$18-1)^2*$E13) ->  | U28: =IF(T28<>"",100*T28/T$30,"") ->  | W28: =IF(V28<>"",100*V28/V$30,"") -> 
B29: 10 | R29: =IF($D$12*$D14=0,"",$D14*$E14) ->  | T29: =IF($D$13*$D14=0,"",$D14*$E14) ->  | V29: =IF($D14="","",$D14*(1/V$18-1)^2*$E14) -> 
B30: The lot | C30: HI(L): | D30: =IF(D18="","",SUM(D20:D29)) -> 0.209655 | E30: =IF(D18="","",SUM(E20:E29)) -> 100 | F30: =IF(F18="","",SUM(F20:F29)) -> 0.261855 | G30: =IF(F18="","",SUM(G20:G29)) -> 100 | H30: =IF(H18="","",SUM(H20:H29)) -> 0.1821407143 | I30: =IF(H18="","",SUM(I20:I29)) -> 100 | J30: =IF(J18="","",SUM(J20:J29)) -> 2.850855 | K30: =IF(J18="","",SUM(K20:K29)) -> 100 | L30: =IF(L18="","",SUM(L20:L29)) ->  | M30: =IF(L18="","",SUM(M20:M29)) ->  | N30: =IF(N18="","",SUM(N20:N29)) ->  | O30: =IF(N18="","",SUM(O20:O29)) ->  | P30: =IF(P18="","",SUM(P20:P29)) ->  | Q30: =IF(P18="","",SUM(Q20:Q29)) ->  | R30: =IF(R18="","",SUM(R20:R29)) ->  | S30: =IF(R18="","",SUM(S20:S29)) ->  | T30: =IF(T18="","",SUM(T20:T29)) ->  | U30: =IF(T18="","",SUM(U20:U29)) ->  | V30: =IF(V18="","",SUM(V20:V29)) ->  | W30: =IF(V18="","",SUM(W20:W29)) -> 
B40: Table 9
B41: Class k | C41: Name | D41: f | E41: r, g/cm | F41: dl(k) | G41: d(k) | H41: dn(k) | I41: g(k) | J41: m(k) | L41: 1) Enter parameters f, r, dl(k)and d(k) | Q41: f: | R41: Shape factor
B42: 1 | C42: =IF(C5="","",C5) -> Sand | H42: =IF(F42="","",(((G42^4-F42^4)/(4*(G42-F42)))^(1/3))) ->  | I42: =IF(F42="","",(1-(F42/G42)^4)/(4*(1-F42/G42))) ->  | J42: =IF(D42="","",D42*E42*H42^3) ->  | L42: 2) Press the button to copy m(k)'s to Table 1 | Q42: r: | R42: Density, g×cm-3
B43: 2 | C43: =IF(C6="","",C6) -> Sesame | I43: =IF(F43="","",(1-(F43/G43)^4)/(4*(1-F43/G43))) ->  | Q43: dl(k): | R43: Lower diameter, cm
B44: 3 | C44: Barley | Q44: d(k): | R44: Upper diameter, cm
B45: 4 | C45: Steel | Q45: dn(k): | R45: Nominel diameter of the class, cm
B46: 5 | Q46: g(k): | R46: The granulometric factor for class k
B47: 6 | Q47: m(k): | R47: Average mass of a fragment of class k, g | V47: m(k) = f×g×dn3×r
B48: 7
B49: 8 | Q49: f is the ratio of a fragment of class k of diameter d(k) and a cube with sides d(k)
B50: 9 | R50: For a sphere f = p/6 = 0.52
B51: 10 | R51: For 'average particles' f = 0.5 is often used

Sheet Classes as analyte
A1: ='Example Table 2'!A1 -> Gys_Extended_1.1 | K1: Prediction of the Fundamental Sampling Error, FSE: | T1: ='Example Table 2'!V1 -> 0
K2: s(FSE) % caused by the constiutional heterogeneity of a 0-dimensional lot
B3: Table 1 | C3: =IF(SUM(E5:E14)=1,"","ERROR: Sum of x(k) must be 1") -> ERROR: Sum of x(k) must be 1 | I3: Table 2 | T3: ONLY ENTER values in the WHITE CELLS
B4: Class k | C4: Name | D4: m(k), g | E4: x(k) | F4: s(FSE) % | H4: Mass factor | I4: =IF(I6="","",1/I6-1/I5) ->  | K4: 1) Enter parameters for the classes in Table 1
B5: 1 | F5: =IF(C5="","",100*SQRT($I$4*D30)) ->  | H5: M(L), g | K5: 2) Enter mass of the lot and the sample in Table 2 | T5: Grey cells are protected, to unprotect, click Review and Unprotect Sheet
B6: 2 | F6: =IF(C6="","",100*SQRT($I$4*F30)) ->  | H6: M(S), g
B7: 3 | F7: =IF(C7="","",100*SQRT($I$4*H30)) ->  | K7: For estimation of m(k) = fgd3r use Table 9 below (Cell B40+) | AA7: a(k): Concentration of analyte k in the lot, g/g
B8: 4 | F8: =IF(C8="","",100*SQRT($I$4*J30)) -> 
B9: 5 | F9: =IF(C9="","",100*SQRT($I$4*L30)) ->  | K9: Each class is considered to be an analyte in this sheet | AA9: Here a(k) = 1 for the class that is considered analyte.
B10: 6 | F10: =IF(C10="","",100*SQRT($I$4*N30)) ->  | H10: Headings and comments:
B11: 7 | F11: =IF(C11="","",100*SQRT($I$4*P30)) -> 
B12: 8 | F12: =IF(C12="","",100*SQRT($I$4*R30)) ->  | T12: m(k): | U12: Average mass of a fragment of class k, g
B13: 9 | F13: =IF(C13="","",100*SQRT($I$4*T30)) ->  | T13: x(k): | U13: Fraction of class k in the lot, M(k)/M(L)
B14: 10 | F14: =IF(C14="","",100*SQRT($I$4*V30)) ->  | T14: a(L): | U14: Concentration of analyte i in the lot, g/g
D15: Sum: | E15: =SUM(E5:E14) -> 0 | T15: HI: | U15: Heterogeneity Invariant for the class HI(k) or lot HI(L), g or %
B16: Table 3
C17: Analyte: | D17: =IF(C5="","",C5) ->  | F17: =IF(C6="","",C6) ->  | H17: =IF(C7="","",C7) ->  | J17: =IF(C8="","",C8) ->  | L17: =IF(C9="","",C9) ->  | N17: =IF(C10="","",C10) ->  | P17: =IF(C11="","",C11) ->  | R17: =IF(C12="","",C12) ->  | T17: =IF(C13="","",C13) ->  | V17: =IF(C14="","",C14) -> 
C18: a(L) | D18: =IF(E5="","",E5) ->  | F18: =IF(E6="","",E6) ->  | H18: =IF(E7="","",E7) ->  | J18: =IF(E8="","",E8) ->  | L18: =IF(E9="","",E9) ->  | N18: =IF(E10="","",E10) ->  | P18: =IF(E11="","",E11) ->  | R18: =IF(E12="","",E12) ->  | T18: =IF(E13="","",E13) ->  | V18: =IF(E14="","",E14) -> 
B19: Class k | C19: Name | D19: HI(k), g | E19: HI(k), % | F19: HI(k), g | G19: HI(k), % | H19: HI(k), g | I19: HI(k), % | J19: HI(k), g | K19: HI(k), % | L19: HI(k), g | M19: HI(k), % | N19: HI(k), g | O19: HI(k), % | P19: HI(k), g | Q19: HI(k), % | R19: HI(k), g | S19: HI(k), % | T19: HI(k), g | U19: HI(k), % | V19: HI(k), g | W19: HI(k), %
B20: 1 | C20: =IF(C5="","",C5) ->  | D20: =IF($D5="","",$D5*(1/D$18-1)^2*$E5) ->  | E20: =IF(D20<>"",100*D20/D$30,"") ->  | F20: =IF($D$6*$D5=0,"",$D5*$E5) ->  | G20: =IF(F20<>"",100*F20/F$30,"") ->  | H20: =IF($D$7*$D5=0,"",$D5*$E5) ->  | I20: =IF(H20<>"",100*H20/H$30,"") ->  | J20: =IF($D$8*$D5=0,"",$D5*$E5) ->  | K20: =IF(J20<>"",100*J20/J$30,"") ->  | L20: =IF($D$9*$D5=0,"",$D5*$E5) ->  | M20: =IF(L20<>"",100*L20/L$30,"") ->  | N20: =IF($D$10*$D5=0,"",$D5*$E5) ->  | O20: =IF(N20<>"",100*N20/N$30,"") ->  | P20: =IF($D$11*$D5=0,"",$D5*$E5) ->  | Q20: =IF(P20<>"",100*P20/P$30,"") ->  | R20: =IF($D$12*$D5=0,"",$D5*$E5) ->  | S20: =IF(R20<>"",100*R20/R$30,"") ->  | T20: =IF($D$13*$D5=0,"",$D5*$E5) ->  | U20: =IF(T20<>"",100*T20/T$30,"") ->  | V20: =IF($D$14*$D5=0,"",$D5*$E5) ->  | W20: =IF(V20<>"",100*V20/V$30,"") -> 
B21: 2 | C21: =IF(C6="","",C6) ->  | D21: =IF($D$5*$D6=0,"",$D6*$E6) ->  | F21: =IF($D6="","",$D6*(1/F$18-1)^2*$E6) ->  | G21: =IF(F21<>"",100*F21/F$30,"") ->  | H21: =IF($D$7*$D6=0,"",$D6*$E6) ->  | I21: =IF(H21<>"",100*H21/H$30,"") ->  | K21: =IF(J21<>"",100*J21/J$30,"") ->  | M21: =IF(L21<>"",100*L21/L$30,"") ->  | O21: =IF(N21<>"",100*N21/N$30,"") ->  | Q21: =IF(P21<>"",100*P21/P$30,"") ->  | S21: =IF(R21<>"",100*R21/R$30,"") ->  | U21: =IF(T21<>"",100*T21/T$30,"") ->  | V21: =IF($D$14*$D6=0,"",$D6*$E6) ->  | W21: =IF(V21<>"",100*V21/V$30,"") -> 
B22: 3 | C22: =IF(C7="","",C7) ->  | D22: =IF($D$5*$D7=0,"",$D7*$E7) ->  | F22: =IF($D$6*$D7=0,"",$D7*$E7) ->  | G22: =IF(F22<>"",100*F22/F$30,"") ->  | H22: =IF($D7="","",$D7*(1/H$18-1)^2*$E7) ->  | I22: =IF(H22<>"",100*H22/H$30,"") ->  | K22: =IF(J22<>"",100*J22/J$30,"") ->  | M22: =IF(L22<>"",100*L22/L$30,"") ->  | O22: =IF(N22<>"",100*N22/N$30,"") ->  | Q22: =IF(P22<>"",100*P22/P$30,"") ->  | S22: =IF(R22<>"",100*R22/R$30,"") ->  | U22: =IF(T22<>"",100*T22/T$30,"") ->  | W22: =IF(V22<>"",100*V22/V$30,"") -> 
B23: 4 | F23: =IF($D$6*$D8=0,"",$D8*$E8) ->  | G23: =IF(F23<>"",100*F23/F$30,"") ->  | H23: =IF($D$7*$D8=0,"",$D8*$E8) ->  | I23: =IF(H23<>"",100*H23/H$30,"") ->  | J23: =IF($D8="","",$D8*(1/J$18-1)^2*$E8) ->  | K23: =IF(J23<>"",100*J23/J$30,"") ->  | M23: =IF(L23<>"",100*L23/L$30,"") ->  | O23: =IF(N23<>"",100*N23/N$30,"") ->  | Q23: =IF(P23<>"",100*P23/P$30,"") ->  | S23: =IF(R23<>"",100*R23/R$30,"") ->  | U23: =IF(T23<>"",100*T23/T$30,"") ->  | W23: =IF(V23<>"",100*V23/V$30,"") -> 
B24: 5 | G24: =IF(F24<>"",100*F24/F$30,"") ->  | H24: =IF($D$7*$D9=0,"",$D9*$E9) ->  | I24: =IF(H24<>"",100*H24/H$30,"") ->  | J24: =IF($D$8*$D9=0,"",$D9*$E9) ->  | K24: =IF(J24<>"",100*J24/J$30,"") ->  | L24: =IF($D9="","",$D9*(1/L$18-1)^2*$E9) ->  | M24: =IF(L24<>"",100*L24/L$30,"") ->  | O24: =IF(N24<>"",100*N24/N$30,"") ->  | Q24: =IF(P24<>"",100*P24/P$30,"") ->  | S24: =IF(R24<>"",100*R24/R$30,"") ->  | U24: =IF(T24<>"",100*T24/T$30,"") ->  | W24: =IF(V24<>"",100*V24/V$30,"") -> 
B25: 6 | G25: =IF(F25<>"",100*F25/F$30,"") ->  | I25: =IF(H25<>"",100*H25/H$30,"") ->  | J25: =IF($D$8*$D10=0,"",$D10*$E10) ->  | K25: =IF(J25<>"",100*J25/J$30,"") ->  | L25: =IF($D$9*$D10=0,"",$D10*$E10) ->  | M25: =IF(L25<>"",100*L25/L$30,"") ->  | N25: =IF($D10="","",$D10*(1/N$18-1)^2*$E10) ->  | O25: =IF(N25<>"",100*N25/N$30,"") ->  | Q25: =IF(P25<>"",100*P25/P$30,"") ->  | S25: =IF(R25<>"",100*R25/R$30,"") ->  | U25: =IF(T25<>"",100*T25/T$30,"") ->  | W25: =IF(V25<>"",100*V25/V$30,"") -> 
B26: 7 | G26: =IF(F26<>"",100*F26/F$30,"") ->  | I26: =IF(H26<>"",100*H26/H$30,"") ->  | K26: =IF(J26<>"",100*J26/J$30,"") ->  | L26: =IF($D$9*$D11=0,"",$D11*$E11) ->  | M26: =IF(L26<>"",100*L26/L$30,"") ->  | N26: =IF($D$10*$D11=0,"",$D11*$E11) ->  | O26: =IF(N26<>"",100*N26/N$30,"") ->  | P26: =IF($D11="","",$D11*(1/P$18-1)^2*$E11) ->  | Q26: =IF(P26<>"",100*P26/P$30,"") ->  | S26: =IF(R26<>"",100*R26/R$30,"") ->  | U26: =IF(T26<>"",100*T26/T$30,"") ->  | W26: =IF(V26<>"",100*V26/V$30,"") -> 
B27: 8 | E27: =IF(D27<>"",100*D27/D$30,"") ->  | G27: =IF(F27<>"",100*F27/F$30,"") ->  | I27: =IF(H27<>"",100*H27/H$30,"") ->  | K27: =IF(J27<>"",100*J27/J$30,"") ->  | M27: =IF(L27<>"",100*L27/L$30,"") ->  | N27: =IF($D$10*$D12=0,"",$D12*$E12) ->  | O27: =IF(N27<>"",100*N27/N$30,"") ->  | P27: =IF($D$11*$D12=0,"",$D12*$E12) ->  | Q27: =IF(P27<>"",100*P27/P$30,"") ->  | R27: =IF($D12="","",$D12*(1/R$18-1)^2*$E12) ->  | S27: =IF(R27<>"",100*R27/R$30,"") ->  | U27: =IF(T27<>"",100*T27/T$30,"") ->  | W27: =IF(V27<>"",100*V27/V$30,"") -> 
B28: 9 | E28: =IF(D28<>"",100*D28/D$30,"") ->  | G28: =IF(F28<>"",100*F28/F$30,"") ->  | I28: =IF(H28<>"",100*H28/H$30,"") ->  | K28: =IF(J28<>"",100*J28/J$30,"") ->  | M28: =IF(L28<>"",100*L28/L$30,"") ->  | O28: =IF(N28<>"",100*N28/N$30,"") ->  | P28: =IF($D$11*$D13=0,"",$D13*$E13) ->  | Q28: =IF(P28<>"",100*P28/P$30,"") ->  | R28: =IF($D$12*$D13=0,"",$D13*$E13) ->  | S28: =IF(R28<>"",100*R28/R$30,"") ->  | T28: =IF($D13="","",$D13*(1/T$18-1)^2*$E13) ->  | U28: =IF(T28<>"",100*T28/T$30,"") ->  | W28: =IF(V28<>"",100*V28/V$30,"") -> 
B29: 10 | G29: =IF(F29<>"",100*F29/F$30,"") ->  | I29: =IF(H29<>"",100*H29/H$30,"") ->  | K29: =IF(J29<>"",100*J29/J$30,"") ->  | M29: =IF(L29<>"",100*L29/L$30,"") ->  | O29: =IF(N29<>"",100*N29/N$30,"") ->  | Q29: =IF(P29<>"",100*P29/P$30,"") ->  | R29: =IF($D$12*$D14=0,"",$D14*$E14) ->  | S29: =IF(R29<>"",100*R29/R$30,"") ->  | T29: =IF($D$13*$D14=0,"",$D14*$E14) ->  | U29: =IF(T29<>"",100*T29/T$30,"") ->  | V29: =IF($D14="","",$D14*(1/V$18-1)^2*$E14) ->  | W29: =IF(V29<>"",100*V29/V$30,"") -> 
B30: The lot | C30: HI(L): | D30: =IF(D18="","",SUM(D20:D29)) ->  | E30: =IF(D18="","",SUM(E20:E29)) ->  | F30: =IF(F18="","",SUM(F20:F29)) ->  | G30: =IF(F18="","",SUM(G20:G29)) ->  | H30: =IF(H18="","",SUM(H20:H29)) ->  | I30: =IF(H18="","",SUM(I20:I29)) ->  | J30: =IF(J18="","",SUM(J20:J29)) ->  | K30: =IF(J18="","",SUM(K20:K29)) ->  | L30: =IF(L18="","",SUM(L20:L29)) ->  | M30: =IF(L18="","",SUM(M20:M29)) ->  | N30: =IF(N18="","",SUM(N20:N29)) ->  | O30: =IF(N18="","",SUM(O20:O29)) ->  | P30: =IF(P18="","",SUM(P20:P29)) ->  | Q30: =IF(P18="","",SUM(Q20:Q29)) ->  | R30: =IF(R18="","",SUM(R20:R29)) ->  | S30: =IF(R18="","",SUM(S20:S29)) ->  | T30: =IF(T18="","",SUM(T20:T29)) ->  | U30: =IF(T18="","",SUM(U20:U29)) ->  | V30: =IF(V18="","",SUM(V20:V29)) ->  | W30: =IF(V18="","",SUM(W20:W29)) -> 
B40: Table 9
B41: Class k | C41: Name | D41: f | E41: r, g/cm | F41: dl(k) | G41: d(k) | H41: dn(k) | I41: g(k) | J41: m(k) | L41: 1) Enter parameters f, r, dl(k)and d(k) | Q41: f: | R41: Shape factor
B42: 1 | C42: =IF(C5="","",C5) ->  | H42: =IF(F42="","",(((G42^4-F42^4)/(4*(G42-F42)))^(1/3))) ->  | I42: =IF(F42="","",(1-(F42/G42)^4)/(4*(1-F42/G42))) ->  | J42: =IF(D42="","",D42*E42*H42^3) ->  | L42: 2) Press the button to copy m(k)'s to Table 1 | Q42: r: | R42: Density, g×cm-3
B43: 2 | C43: =IF(C6="","",C6) ->  | I43: =IF(F43="","",(1-(F43/G43)^4)/(4*(1-F43/G43))) ->  | Q43: dl(k): | R43: Lower diameter, cm
B44: 3 | Q44: d(k): | R44: Upper diameter, cm
B45: 4 | Q45: dn(k): | R45: Nominel diameter of the class, cm
B46: 5 | Q46: g(k): | R46: The granulometric factor for class k
B47: 6 | Q47: m(k): | R47: Average mass of a fragment of class k, g | V47: m(k) = f×g×dn3×r
B48: 7
B49: 8 | Q49: f is the ratio of a fragment of class k of diameter d(k) and a cube with sides d(k)
B50: 9 | R50: For a sphere f = p/6 = 0.52
B51: 10 | R51: For 'average particles' f = 0.5 is often used

Sheet Example Table 5
A1: ='Example Table 2'!A1 -> Gys_Extended_1.1 | J1: Prediction of the Fundamental Sampling Error, FSE: | R1: ='Example Table 2'!T1 -> Author: Bo Svensmark, svensmark@plen.ku.dk, Analytical Chemistry, ECP, PLEN, University of Copenhagen, 2021
J2: s(FSE) % caused by the constiutional heterogeneity of a 0-dimensional lot
B3: Table 1 | C3: =IF(SUM(E5:E14)=1,"","ERROR: Sum of x(k) must be 1") ->  | G3: Table 2 | R3: ONLY ENTER values in the WHITE CELLS
B4: Class k | C4: Name | D4: m(k), g | E4: x(k) | G4: Lot mass: | J4: 1) Enter parameters for the classes in Table 1
B5: 1 | C5: Silt and clay | D5: 8.282806875e-08 | E5: 0.268 | G5: M(L), g | H5: 1000000 | J5: 2) Enter mass of the lot in Table 2 | R5: This sheet is protected, to unprotect, click Review and Unprotect Sheet
B6: 2 | C6: Sand fine | D6: 3.830524319e-06 | E6: 0.278 | J6: 3) Enter concentrations, a(i,k),for up to 6 analytes in Table 3-8
B7: 3 | C7: Sand medium | D7: 0.000106 | E7: 0.232 | J7: 4) Enter sample mass, M(S), and/or s(FSE) % in Table 3
B8: 4 | C8: Sand coarse | D8: 0.00375505 | E8: 0.067
B9: 5 | C9: Organic Matter | D9: 2.34375e-05 | E9: 0.155 | J9: For estimation of m(k) = fgd3r use Table 9 below (Cell B70+)
B10: 6 | G10: Headings and comments:
B11: 7 | G11: The data and results for Table 5 in the paper: https://doi.org/10.1016/j.aca.2021.339127 | R11: m(k): | S11: Average mass of a fragment of class k, g
B12: 8 | G12: Results for predicted uncertainty in Table 5 is highlighted in yellow | R12: x(k): | S12: Fraction of class k in the lot, M(k)/M(L)
B13: 9 | R13: a(i,k): | S13: Concentration of analyte i in class k, g/g
B14: 10 | G14: To make your own estimates use the sheet: Gys extended | R14: a(L): | S14: Concentration of analyte i in the lot, g/g
R15: HI: | S15: Heterogeneity Invariant for the class, HI(k),and the lot, HI(L)
B16: Table 3 | J16: Table 4
B17: Analyte 1: | C17: Silt and clay | E17: Sampling from a lot of | G17: =$H$5 -> 1000000 | H17: g | J17: Analyte 2: | K17: Sand fine | M17: Sampling from a lot of | O17: =$H$5 -> 1000000 | P17: g | S17: OBS: A class can be an analyte.
B18: a(L) | C18: HI(L), g | E18: Predict s(FSE) % | G18: Predict M(S) | J18: a(L) | K18: HI(L), g | M18: Predict s(FSE) % | O18: Predict M(S) | S18: For the class as analyte: | V18: a(i,k) = any number <> 0
B19: =SUM($E$5:E$14*B21:B30) -> 0.000268 | C19: =SUM(C21:C30) -> 0.00028104365 | J19: =SUM(E$5:E$14*J21:J30) -> 0.000278 | K19: =SUM(K21:K30) -> 0.000287018062 | S19: For all other classes: | V19: a(i,k) = 0
B20: a(1,k) | C20: HI(k), g | D20: HI(k), % | E20: M(S), g | F20: s(FSE) % | G20: s(FSE) % | H20: M(S), g | J20: a(2,k) | K20: HI(k), g | L20: HI(k), % | M20: M(S), g | N20: s(FSE) % | O20: s(FSE) % | P20: M(S), g
B21: 0.001 | C21: =IF(B21="","",D5*(B21/B$19-1)^2*E5) -> 1.656017429e-07 | D21: =IF(C21="","",100*C21/$C$19) -> 0.05892385149 | E21: 1 | F21: =IF(E21="","",100*SQRT((1/E21-1/$H$5)*$C$19)) -> 1.676434815 | G21: 1 | H21: =IF(G21="","",1/(((G21/100)^2)/$C$19+1/$H$5)) -> 2.810428602 | J21: 0 | K21: =IF(J21="","",D5*(J21/J$19-1)^2*E5) -> 2.219792243e-08 | L21: =IF(K21="","",100*K21/K$19) -> 0.007733981015 | M21: =IF($E21="","",IF(J$19=0,"",$E21)) -> 1 | N21: =IF(M21="","",100*SQRT((1/M21-1/$H$5)*K$19)) -> 1.694159895 | O21: =IF($G21="","",IF(J$19=0,"",$G21)) -> 1 | P21: =IF(O21="","",1/(((O21/100)^2)/$K$19+1/H$5)) -> 2.870172382 | S21: In this example the concentrations are set equal to 0.001
B22: 0 | C22: =IF(B22="","",D6*(B22/B$19-1)^2*E6) -> 1.064885761e-06 | D22: 0.3789040459 | E22: 0.1 | F22: 5.30135475 | G22: 2 | H22: 0.7026086313 | J22: 0.001 | K22: =IF(J22="","",D6*(J22/J$19-1)^2*E6) -> 7.182701579e-06 | L22: =IF(K22="","",100*K22/K$19) -> 2.502525984 | M22: =IF($E22="","",IF(J$19=0,"",$E22)) -> 0.1 | N22: =IF(M22="","",100*SQRT((1/M22-1/$H$5)*K$19)) -> 5.3574064 | O22: =IF($G22="","",IF(J$19=0,"",$G22)) -> 2 | P22: =IF(O22="","",1/(((O22/100)^2)/$K$19+1/H$5)) -> 0.7175446401 | S22: but, any number <> 0 will give the same result
B23: 0 | C23: 2.4592e-05 | D23: 8.750242178 | E23: 0.025 | F23: 10.6027099 | G23: 5 | H23: 0.1124174474 | J23: 0 | K23: 2.4592e-05 | L23: 8.568101892 | M23: 0.025 | N23: 10.7148132 | O23: 5 | P23: 0.1148072116
B24: 0 | C24: 0.00025158835 | D24: 89.51931488 | E24: 0.01 | F24: 16.76435645 | G24: 10 | H24: 0.02810436421 | J24: 0 | K24: 0.00025158835 | L24: 87.65592947 | M24: 0.01 | N24: 16.94160734 | O24: 10 | P24: 0.02870180538
B25: 0 | C25: 3.6328125e-06 | D25: 1.292615044 | G25: 20 | H25: 0.007026091201 | J25: 0 | K25: 3.6328125e-06 | L25: 1.265708672 | O25: 20 | P25: 0.007175451499
B31: Table 5 | J31: Table 6
B32: Analyte 3: | C32: Sand medium | E32: Sampling from a lot of | G32: =$H$5 -> 1000000 | H32: g | J32: Analyte 4: | K32: Sand coarse | M32: Sampling from a lot of | O32: =$H$5 -> 1000000 | P32: g
B33: a(L) | C33: HI(L), g | E33: Predict s(FSE) % | G33: Predict M(S) | J33: a(L) | K33: HI(L), g | M33: Predict s(FSE) % | O33: Predict M(S)
B34: =SUM(E$5:E$14*B36:B45) -> 0.000232 | C34: =SUM(C36:C45) -> 0.0005257967979 | J34: =SUM(E$5:E$14*J36:J45) -> 6.7e-05 | K34: =SUM(K36:K45) -> 0.04881632263
B35: a(3,k) | C35: HI(k), g | D35: HI(k), % | E35: M(S), g | F35: s(FSE) % | G35: s(FSE) % | H35: M(S), g | J35: a(4,k) | K35: HI(k), g | L35: HI(k), % | M35: M(S), g | N35: s(FSE) % | O35: s(FSE) % | P35: M(S), g
B36: 0 | C36: =IF(B36="","",D5*(B36/B$34-1)^2*E5) -> 2.219792243e-08 | D36: =IF(C36="","",100*C36/C$34) -> 0.004221768279 | E36: =IF($E21="","",IF(B$34=0,"",$E21)) -> 1 | F36: =IF(E36="","",100*SQRT((1/E36-1/$H$5)*C$34)) -> 2.293024797 | G36: =IF($G21="","",IF(B$34=0,"",$G21)) -> 1 | H36: =IF(G36="","",1/(((G36/100)^2)/$C$34+1/H$5)) -> 5.257940333 | J36: 0 | K36: =IF(J36="","",D5*(J36/J$34-1)^2*E5) -> 2.219792243e-08 | L36: =IF(K36="","",100*K36/K$34) -> 4.547233636e-05 | M36: =IF($E21="","",IF(J$34=0,"",$E21)) -> 1 | N36: =IF(M36="","",100*SQRT((1/M36-1/$H$5)*K$34)) -> 22.09440513 | O36: =IF($G21="","",IF(J$34=0,"",$G21)) -> 1 | P36: =IF(O36="","",1/(((O36/100)^2)/$K$34+1/H$5)) -> 487.9250393
B37: 0 | C37: =IF(B37="","",D6*(B37/B$34-1)^2*E6) -> 1.064885761e-06 | D37: 0.2025280041 | E37: =IF($E22="","",IF(B$34=0,"",$E22)) -> 0.1 | F37: 7.251184354 | G37: =IF($G22="","",IF(B$34=0,"",$G22)) -> 2 | H37: 1.314490267 | J37: 0 | K37: =IF(J37="","",D6*(J37/J$34-1)^2*E6) -> 1.064885761e-06 | L37: =IF(K37="","",100*K37/K$34) -> 0.002181413312 | M37: =IF($E22="","",IF(J$34=0,"",$E22)) -> 0.1 | N37: =IF(M37="","",100*SQRT((1/M37-1/$H$5)*K$34)) -> 69.86867521 | O37: =IF($G22="","",IF(J$34=0,"",$G22)) -> 2 | P37: =IF(O37="","",1/(((O37/100)^2)/$K$34+1/H$5)) -> 122.0259144
B38: 0.001 | C38: 0.0002694885517 | D38: 51.25336495 | E38: 0.025 | F38: 14.50236925 | G38: 5 | H38: 0.2103186749 | J38: 0 | K38: 2.4592e-05 | L38: 0.05037659265 | M38: 0.025 | N38: 139.7373557 | O38: 5 | P38: 19.52614778
B39: 0 | C39: 0.00025158835 | D39: 47.8489696 | E39: 0.01 | F39: 22.93025932 | G39: 10 | H39: 0.05257967703 | J39: 0.001 | K39: 0.04878701074 | L39: 99.93995472 | M39: 0.01 | N39: 220.9441607 | O39: 10 | P39: 4.881608433
B40: 0 | C40: 3.6328125e-06 | D40: 0.6909156759 | G40: 20 | H40: 0.01314491977 | J40: 0 | K40: 3.6328125e-06 | L40: 0.007441798775 | O40: 20 | P40: 1.220406576
B46: Table 7 | J46: Table 8
B47: Analyte 5: | C47: Organic Matter | E47: Sampling from a lot of | G47: =$H$5 -> 1000000 | H47: g | J47: Analyte 6: | K47: All surfaces | M47: Sampling from a lot of | O47: =$H$5 -> 1000000 | P47: g
B48: a(L) | C48: HI(L), g | E48: Predict s(FSE) % | G48: Predict M(S) | J48: a(L) | K48: HI(L), g | M48: Predict s(FSE) % | O48: Predict M(S)
B49: =SUM(E$5:E$14*B51:B60) -> 0.000155 | C49: =SUM(C51:C60) -> 0.0003852349236 | J49: =SUM(E$5:E$14*J51:J60) -> 0.2602501016 | K49: =SUM(K51:K60) -> 0.0002600559322
B50: a(5,k) | C50: HI(k), g | D50: HI(k), % | E50: M(S), g | F50: s(FSE) % | G50: s(FSE) % | H50: M(S), g | J50: a(6,k) | K50: HI(k), g | L50: HI(k), % | M50: M(S), g | N50: s(FSE) % | O50: s(FSE) % | P50: M(S), g
B51: 0 | C51: =IF(B51="","",D5*(B51/B$49-1)^2*E5) -> 2.219792243e-08 | D51: =IF(C51="","",100*C51/C$49) -> 0.005762178106 | E51: =IF($E21="","",IF(B$49=0,"",$E21)) -> 1 | F51: =IF(E51="","",100*SQRT((1/E51-1/$H$5)*C$49)) -> 1.962739255 | G51: =IF($G21="","",IF(B$49=0,"",$G21)) -> 1 | H51: =IF(G51="","",1/(((G51/100)^2)/$C$49+1/H$5)) -> 3.852334395 | J51: 0.6831391228 | K51: =IF(J51="","",D5*(J51/J$49-1)^2*E5) -> 5.861156732e-08 | L51: =IF(K51="","",100*K51/K$49) -> 0.02253806203 | M51: =IF($E21="","",IF(J$49=0,"",$E21)) -> 1 | N51: =IF(M51="","",100*SQRT((1/M51-1/$H$5)*K$49)) -> 1.612624172 | O51: =IF($G21="","",IF(J$49=0,"",$G21)) -> 1 | P51: =IF(O51="","",1/(((O51/100)^2)/$K$49+1/$H$5)) -> 2.600552559
B52: 0 | C52: =IF(B52="","",D6*(B52/B$49-1)^2*E6) -> 1.064885761e-06 | D52: =IF(C52="","",100*C52/C$49) -> 0.2764250319 | E52: =IF($E22="","",IF(B$49=0,"",$E22)) -> 0.1 | F52: =IF(E52="","",100*SQRT((1/E52-1/$H$5)*C$49)) -> 6.206729292 | G52: =IF($G22="","",IF(B$49=0,"",$G22)) -> 2 | H52: =IF(G52="","",1/(((G52/100)^2)/$C$49+1/H$5)) -> 0.9630863815 | J52: 0.1974205072 | K52: =IF(J52="","",D6*(J52/J$49-1)^2*E6) -> 6.206542242e-08 | L52: =IF(K52="","",100*K52/K$49) -> 0.02386618213 | M52: =IF($E22="","",IF(J$49=0,"",$E22)) -> 0.1 | N52: =IF(M52="","",100*SQRT((1/M52-1/$H$5)*K$49)) -> 5.099567689 | O52: =IF($G22="","",IF(J$49=0,"",$G22)) -> 2 | P52: =IF(O52="","",1/(((O52/100)^2)/$K$49+1/$H$5)) -> 0.6501394078
B53: 0 | C53: 2.4592e-05 | D53: 6.383637228 | E53: 0.025 | F53: 12.41345905 | G53: 5 | H53: 0.1540939457 | J53: 0.05446943937 | K53: 1.537521352e-05 | L53: 5.912271792 | M53: 0.025 | N53: 10.19913576 | O53: 5 | P53: 0.1040223621
B54: 0 | C54: 0.00025158835 | D54: 65.30777315 | E54: 0.01 | F54: 19.62740227 | G54: 10 | H54: 0.03852349088 | J54: 0.004789642551 | K54: 0.0002424131014 | L54: 93.21575531 | M54: 0.01 | N54: 16.12624971 | O54: 10 | P54: 0.02600559254
B55: 0.001 | C55: 0.0001079674899 | D55: 28.02640241 | G55: 20 | H55: 0.009630872997 | J55: 0.06018128805 | K55: 2.146940265e-06 | L55: 0.8255686564 | O55: 20 | P55: 0.006501398262
B70: Table 9
B71: Class k | C71: Name | D71: f | E71: r, g×cm-3 | F71: dl(k), cm | G71: d(k), cm | H71: dn(k), cm | I71: g(k) | J71: m(k), g | L71: 1) Enter parameters f, r, dl(k)and d(k) | Q71: f: | R71: Shape factor
B72: 1 | C72: =IF(C5="","",C5) -> Silt and clay | D72: 0.5 | E72: 2.65 | F72: 0 | G72: 0.0063 | H72: =IF(F72="","",(((G72^4-F72^4)/(4*(G72-F72)))^(1/3))) -> 0.003968751307 | I72: =IF(F72="","",(1-(F72/G72)^4)/(4*(1-F72/G72))) -> 0.25 | J72: =IF(D72="","",D72*E72*H72^3) -> 8.282806875e-08 | L72: 2) Press the button to copy m(k)'s to Table 1 | Q72: r: | R72: Density, g×cm-3
B73: 2 | C73: Sand fine | D73: 0.5 | E73: 2.65 | F73: 0.0063 | G73: 0.02 | H73: =IF(F73="","",(((G73^4-F73^4)/(4*(G73-F73)))^(1/3))) -> 0.01424560119 | I73: =IF(F73="","",(1-(F73/G73)^4)/(4*(1-F73/G73))) -> 0.3613702187 | J73: 3.830524319e-06 | Q73: dl(k): | R73: Lower diameter, cm
B74: 3 | C74: Sand medium | D74: 0.5 | E74: 2.65 | F74: 0.02 | G74: 0.06 | H74: 0.0430886938 | I74: 0.3703703704 | J74: 0.000106 | Q74: d(k): | R74: Upper diameter, cm
B75: 4 | C75: Sand coarse | D75: 0.5 | E75: 2.65 | F75: 0.06 | G75: 0.2 | H75: 0.1415141766 | I75: 0.35425 | J75: 0.00375505 | Q75: dn(k): | R75: Nominel diameter of the class, cm
B76: 5 | C76: Organic Matter | D76: 0.5 | E76: 1.5 | F76: 0 | G76: 0.05 | H76: 0.03149802625 | I76: 0.25 | J76: 2.34375e-05 | Q76: g(k): | R76: The granulometric factor for class k
B77: 6 | Q77: m(k): | R77: Average mass of a fragment of class k, g | V77: m(k) = f×g×dn3×r
B78: 7
B79: 8 | Q79: f is the ratio of a fragment of class k of diameter d(k) and a cube with sides d(k)
B80: 9 | R80: For a sphere f = p/6 = 0.52
B81: 10 | R81: For 'average particles' f = 0.5 is often used

Sheet Gys extended
A1: ='Example Table 2'!A1 -> Gys_Extended_1.1 | J1: Prediction of the Fundamental Sampling Error, FSE: | R1: ='Example Table 2'!T1 -> Author: Bo Svensmark, svensmark@plen.ku.dk, Analytical Chemistry, ECP, PLEN, University of Copenhagen, 2021
J2: s(FSE) % caused by the constiutional heterogeneity of a 0-dimensional lot
B3: Table 1 | C3: =IF(SUM(E5:E14)=1,"","ERROR: Sum of x(k) must be 1") -> ERROR: Sum of x(k) must be 1 | F3: nS | G3: Table 2 | R3: ONLY ENTER values in the WHITE CELLS
B4: Class k | C4: Name | D4: m(k), g | E4: x(k) | G4: Lot mass: | J4: 1) Enter parameters for the classes in Table 1
B5: 1 | G5: M(L), g | J5: 2) Enter mass of the lot in Table 2 | R5: This sheet is protected, to unprotect, click Review and Unprotect Sheet
B6: 2 | J6: 3) Enter concentrations, a(i,k),for up to 6 analytes in Table 3-8
B7: 3 | J7: 4) Enter sample mass, M(S), and/or s(FSE) % in Table 3
B8: 4
B9: 5 | J9: For estimation of m(k) = fgd3r use Table 9 below (Cell B70+)
B10: 6 | G10: Headings and comments:
B11: 7 | R11: m(k): | S11: Average mass of a fragment of class k, g
B12: 8 | R12: x(k): | S12: Fraction of class k in the lot, M(k)/M(L)
B13: 9 | R13: a(i,k): | S13: Concentration of analyte i in class k, g/g
B14: 10 | R14: a(L): | S14: Concentration of analyte i in the lot, g/g
D15: Sum: | E15: =SUM(E5:E14) -> 0 | R15: HI: | S15: Heterogeneity Invariant for the class, HI(k),and the lot, HI(L)
B16: Table 3 | J16: Table 4
B17: Analyte 1: | E17: Sampling from a lot of | G17: =$H$5 -> 0 | H17: g | J17: Analyte 2: | M17: Sampling from a lot of | O17: =$H$5 -> 0 | P17: g | S17: OBS: A class can be an analyte.
B18: a(L) | C18: HI(L), g | E18: Predict s(FSE) % | G18: Predict M(S) | J18: a(L) | K18: HI(L), g | M18: Predict s(FSE) % | O18: Predict M(S) | S18: For the class as analyte: | U18: a(i,k) = any number <> 0
B19: =SUM($E$5:E$14*B21:B30) -> 0 | C19: =SUM(C21:C30) -> 0 | J19: =SUM(E$5:E$14*J21:J30) -> 0 | K19: =SUM(K21:K30) -> 0 | S19: For all other classes: | U19: a(i,k) = 0
B20: a(1,k) | C20: HI(k), g | D20: HI(k), % | E20: M(S), g | F20: s(FSE) % | G20: s(FSE) % | H20: M(S), g | J20: a(2,k) | K20: HI(k), g | L20: HI(k), % | M20: M(S), g | N20: s(FSE) % | O20: s(FSE) % | P20: M(S), g
C21: =IF(B21="","",D5*(B21/B$19-1)^2*E5) ->  | D21: =IF(C21="","",100*C21/$C$19) ->  | F21: =IF(E21="","",100*SQRT((1/E21-1/$H$5)*$C$19)) ->  | H21: =IF(G21="","",1/(((G21/100)^2)/$C$19+1/$H$5)) ->  | K21: =IF(J21="","",D5*(J21/J$19-1)^2*E5) ->  | L21: =IF(K21="","",100*K21/K$19) ->  | M21: =IF($E21="","",IF(J$19=0,"",$E21)) ->  | N21: =IF(M21="","",100*SQRT((1/M21-1/$H$5)*K$19)) ->  | O21: =IF($G21="","",IF(J$19=0,"",$G21)) ->  | P21: =IF(O21="","",1/(((O21/100)^2)/$K$19+1/H$5)) -> 
C22: =IF(B22="","",D6*(B22/B$19-1)^2*E6) ->  | K22: =IF(J22="","",D6*(J22/J$19-1)^2*E6) ->  | L22: =IF(K22="","",100*K22/K$19) ->  | M22: =IF($E22="","",IF(J$19=0,"",$E22)) ->  | N22: =IF(M22="","",100*SQRT((1/M22-1/$H$5)*K$19)) ->  | O22: =IF($G22="","",IF(J$19=0,"",$G22)) ->  | P22: =IF(O22="","",1/(((O22/100)^2)/$K$19+1/H$5)) -> 
B31: Table 5 | J31: Table 6
B32: Analyte 3: | E32: Sampling from a lot of | G32: =$H$5 -> 0 | H32: g | J32: Analyte 4: | M32: Sampling from a lot of | O32: =$H$5 -> 0 | P32: g
B33: a(L) | C33: HI(L), g | E33: Predict s(FSE) % | G33: Predict M(S) | J33: a(L) | K33: HI(L), g | M33: Predict s(FSE) % | O33: Predict M(S)
B34: =SUM(E$5:E$14*B36:B45) -> 0 | C34: =SUM(C36:C45) -> 0 | J34: =SUM(E$5:E$14*J36:J45) -> 0 | K34: =SUM(K36:K45) -> 0
B35: a(3,k) | C35: HI(k), g | D35: HI(k), % | E35: M(S), g | F35: s(FSE) % | G35: s(FSE) % | H35: M(S), g | J35: a(4,k) | K35: HI(k), g | L35: HI(k), % | M35: M(S), g | N35: s(FSE) % | O35: s(FSE) % | P35: M(S), g
C36: =IF(B36="","",D5*(B36/B$34-1)^2*E5) ->  | D36: =IF(C36="","",100*C36/C$34) ->  | E36: =IF($E21="","",IF(B$34=0,"",$E21)) ->  | F36: =IF(E36="","",100*SQRT((1/E36-1/$H$5)*C$34)) ->  | G36: =IF($G21="","",IF(B$34=0,"",$G21)) ->  | H36: =IF(G36="","",1/(((G36/100)^2)/$C$34+1/H$5)) ->  | K36: =IF(J36="","",D5*(J36/J$34-1)^2*E5) ->  | L36: =IF(K36="","",100*K36/K$34) ->  | M36: =IF($E21="","",IF(J$34=0,"",$E21)) ->  | N36: =IF(M36="","",100*SQRT((1/M36-1/$H$5)*K$34)) ->  | O36: =IF($G21="","",IF(J$34=0,"",$G21)) ->  | P36: =IF(O36="","",1/(((O36/100)^2)/$K$34+1/H$5)) -> 
C37: =IF(B37="","",D6*(B37/B$34-1)^2*E6) ->  | E37: =IF($E22="","",IF(B$34=0,"",$E22)) ->  | G37: =IF($G22="","",IF(B$34=0,"",$G22)) ->  | K37: =IF(J37="","",D6*(J37/J$34-1)^2*E6) ->  | L37: =IF(K37="","",100*K37/K$34) ->  | M37: =IF($E22="","",IF(J$34=0,"",$E22)) ->  | N37: =IF(M37="","",100*SQRT((1/M37-1/$H$5)*K$34)) ->  | O37: =IF($G22="","",IF(J$34=0,"",$G22)) ->  | P37: =IF(O37="","",1/(((O37/100)^2)/$K$34+1/H$5)) -> 
B46: Table 7 | J46: Table 8
B47: Analyte 5: | E47: Sampling from a lot of | G47: =$H$5 -> 0 | H47: g | J47: Analyte 6: | M47: Sampling from a lot of | O47: =$H$5 -> 0 | P47: g
B48: a(L) | C48: HI(L), g | E48: Predict s(FSE) % | G48: Predict M(S) | J48: a(L) | K48: HI(L), g | M48: Predict s(FSE) % | O48: Predict M(S)
B49: =SUM(E$5:E$14*B51:B60) -> 0 | C49: =SUM(C51:C60) -> 0 | J49: =SUM(E$5:E$14*J51:J60) -> 0 | K49: =SUM(K51:K60) -> 0
B50: a(5,k) | C50: HI(k), g | D50: HI(k), % | E50: M(S), g | F50: s(FSE) % | G50: s(FSE) % | H50: M(S), g | J50: a(6,k) | K50: HI(k), g | L50: HI(k), % | M50: M(S), g | N50: s(FSE) % | O50: s(FSE) % | P50: M(S), g
C51: =IF(B51="","",D5*(B51/B$49-1)^2*E5) ->  | D51: =IF(C51="","",100*C51/C$49) ->  | E51: =IF($E21="","",IF(B$49=0,"",$E21)) ->  | F51: =IF(E51="","",100*SQRT((1/E51-1/$H$5)*C$49)) ->  | G51: =IF($G21="","",IF(B$49=0,"",$G21)) ->  | H51: =IF(G51="","",1/(((G51/100)^2)/$C$49+1/H$5)) ->  | K51: =IF(J51="","",D5*(J51/J$49-1)^2*E5) ->  | L51: =IF(K51="","",100*K51/K$49) ->  | M51: =IF($E21="","",IF(J$49=0,"",$E21)) ->  | N51: =IF(M51="","",100*SQRT((1/M51-1/$H$5)*K$49)) ->  | O51: =IF($G21="","",IF(J$49=0,"",$G21)) ->  | P51: =IF(O51="","",1/(((O51/100)^2)/$K$49+1/$H$5)) -> 
C52: =IF(B52="","",D6*(B52/B$49-1)^2*E6) ->  | D52: =IF(C52="","",100*C52/C$49) ->  | E52: =IF($E22="","",IF(B$49=0,"",$E22)) ->  | F52: =IF(E52="","",100*SQRT((1/E52-1/$H$5)*C$49)) ->  | G52: =IF($G22="","",IF(B$49=0,"",$G22)) ->  | H52: =IF(G52="","",1/(((G52/100)^2)/$C$49+1/H$5)) ->  | K52: =IF(J52="","",D6*(J52/J$49-1)^2*E6) ->  | L52: =IF(K52="","",100*K52/K$49) ->  | M52: =IF($E22="","",IF(J$49=0,"",$E22)) ->  | N52: =IF(M52="","",100*SQRT((1/M52-1/$H$5)*K$49)) ->  | O52: =IF($G22="","",IF(J$49=0,"",$G22)) ->  | P52: =IF(O52="","",1/(((O52/100)^2)/$K$49+1/$H$5)) -> 
B70: Table 9
B71: Class k | C71: Name | D71: f | E71: r, g×cm-3 | F71: dl(k), cm | G71: d(k), cm | H71: dn(k), cm | I71: g(k) | J71: m(k), g | L71: 1) Enter parameters f, r, dl(k)and d(k) | Q71: f: | R71: Shape factor
B72: 1 | C72: =IF(C5="","",C5) ->  | H72: =IF(F72="","",(((G72^4-F72^4)/(4*(G72-F72)))^(1/3))) ->  | I72: =IF(F72="","",(1-(F72/G72)^4)/(4*(1-F72/G72))) ->  | J72: =IF(D72="","",D72*E72*H72^3) ->  | L72: 2) Press the button to copy m(k)'s to Table 1 | Q72: r: | R72: Density, g×cm-3
B73: 2 | I73: =IF(F73="","",(1-(F73/G73)^4)/(4*(1-F73/G73))) ->  | Q73: dl(k): | R73: Lower diameter, cm
B74: 3 | Q74: d(k): | R74: Upper diameter, cm
B75: 4 | Q75: dn(k): | R75: Nominel diameter of the class, cm
B76: 5 | Q76: g(k): | R76: The granulometric factor for class k
B77: 6 | Q77: m(k): | R77: Average mass of a fragment of class k, g | V77: m(k) = f×g×dn3×r
B78: 7
B79: 8 | Q79: f is the ratio of a fragment of class k of diameter d(k) and a cube with sides d(k)
B80: 9 | R80: For a sphere f = p/6 = 0.52
B81: 10 | R81: For 'average particles' f = 0.5 is often used
